fUST/lending_fUST_20251101
["ID","MTS","AMOUNT","RATE_DAILY","PERIOD"]
[392818914,1761991839419,-293.85068442,0.0004502,60]
[392818915,1761991839428,-528.59,0.00045153,30]
[392818916,1761991839438,-301.999999,0.0004538,2]
[392818917,1761991839447,-161.0,0.000455,120]
[392818918,1761991839456,-163.080226,0.00045552,15]
[392818919,1761991839466,-163.080226,0.00045552,15]
[392818920,1761991839476,-163.080226,0.00045552,15]
[392818921,1761991839485,-163.080226,0.00045552,15]
[392818922,1761991839496,-602.2133857,0.00045583,30]
[392818923,1761991839506,-163.6878394,0.00045583,30]
[392818924,1761991839515,-153.8656393,0.00045583,30]
[392818925,1761991839524,-163.728101,0.00045583,30]
[392818926,1761991839534,-299.430284,0.00045583,30]
[392818927,1761991839543,-314.5912241,0.00045583,30]
[392818928,1761991839552,-591.4313213,0.00045583,30]
[392818929,1761991839561,-319.9620476,0.00045583,30]
[392818930,1761991839570,-163.728101,0.00045583,30]
[392818931,1761991839579,-299.430284,0.00045583,30]
[392818932,1761991839588,-591.4313213,0.00045583,30]
[392818933,1761991839597,-163.728101,0.00045583,30]
[392818934,1761991839607,-591.4313213,0.00045583,30]
[392818935,1761991839616,-299.430284,0.00045583,30]
[392818936,1761991839626,-591.4313213,0.00045583,30]
[392818937,1761991839635,-163.728101,0.00045583,30]
[392818938,1761991839644,-299.430284,0.00045583,30]
[392818939,1761991839653,-591.4313213,0.00045583,30]
[392818940,1761991839661,-163.728101,0.00045583,30]
[392818941,1761991839670,-299.430284,0.00045583,30]
[392818942,1761991839679,-591.4313213,0.00045583,30]
[392818943,1761991839689,-330.7173974,0.00045583,30]
[392818944,1761991839698,-600.6037944,0.00045583,30]
[392818945,1761991839707,-591.4313213,0.00045583,30]
[392818946,1761991839716,-591.4313213,0.00045583,30]
[392818947,1761991839725,-591.4313213,0.00045583,30]
[392818948,1761991839734,-591.4313213,0.00045583,30]
[392818949,1761991839744,-384.092158,0.00045583,30]
[392818950,1761991839753,-237.2040233,0.000456,120]
[392818951,1761991839762,-160.16915232,0.000456,120]
[392818952,1761991839771,-213.8177775,0.000456,120]
[392818953,1761991839780,-186.33923927,0.000456,120]
[392818954,1761991839789,-198.46714883,0.000456,120]
[392818955,1761991839798,-160.0,0.00045606,9]
[392818956,1761991839807,-1665.47,0.00045843,15]
[392818957,1761991839816,-900.0,0.0004588,120]
[392818958,1761991839825,-787.030896,0.00046143,2]
[392818959,1761991839834,-534.28392032,0.00046198,60]
[392818960,1761991839843,-1000.0,0.00046257,90]
[392818961,1761991839852,-791.0,0.00046257,90]
[392818962,1761991839861,-503.720424,0.00046387,60]
[392818963,1761991839869,-1000.0,0.00046575,120]
[392818964,1761991839878,-1000.0,0.00046575,120]
[392818966,1761991839887,-1000.0,0.00046575,120]
[392818967,1761991839896,-1000.0,0.00046575,120]
[392818968,1761991839905,-996.03041771,0.00046575,120]
[392818969,1761991839914,-922.08,0.000466,15]
[392818970,1761991839923,-200.0,0.00046776,120]
[392818971,1761991839933,-281.54,0.000468,120]
[392818972,1761991839942,-1893.2,0.000469,14]
[392818973,1761991839951,-237.2040233,0.000469,120]
[392818974,1761991839960,-160.16915232,0.000469,120]
[392818975,1761991839969,-213.8177775,0.000469,120]
[392818976,1761991839978,-156.970152,0.00046938,120]
[392818977,1761991839987,-163.771581,0.00046938,120]
[392818978,1761991839995,-621.2,0.00047,30]
[392818979,1761991840004,-160.0,0.00047085,10]
[392818980,1761991840013,-163.96216044,0.00047085,5]
[392818981,1761991840022,-412.0,0.00047246,2]
[392818982,1761991840031,-3517.11,0.000477,15]
[392818983,1761991840040,-8792.79,0.00048,14]
[392818984,1761991840049,-156.970152,0.0004815,120]
[392818985,1761991840058,-156.930307,0.0004815,120]
[392818986,1761991840067,-156.930306,0.0004815,120]
[392818987,1761991840076,-163.771581,0.0004815,120]
[392818988,1761991840085,-634.31,0.00048163,30]
[392818989,1761991840094,-237.2040233,0.000483,120]
[392818990,1761991840103,-213.8177775,0.000483,120]
[392818991,1761991840112,-971.5047778,0.0004831,60]
[392818992,1761991840121,-4427.0,0.00048323,5]
[392818993,1761991840130,-500.0,0.00048352,60]
[392818995,1761991840139,-614.53501441,0.0004888,120]
[392818996,1761991840148,-503.16175686,0.00048975,60]
[392818997,1761991840157,-297.75388331,0.00049315,120]
[392818998,1761991840166,-163.080226,0.00049444,15]
[392818999,1761991840175,-163.080226,0.00049444,15]
[392819000,1761991840184,-163.080226,0.00049444,15]
[392819001,1761991840198,-163.080226,0.00049444,15]
[392819002,1761991840207,-200.0,0.00049586,120]
[392819003,1761991840216,-237.2040233,0.000498,120]
[392819004,1761991840225,-213.8177775,0.000498,120]
[392819005,1761991840236,-220.7374832,0.0005,10]
[392819006,1761991840246,-163.080226,0.0005,15]
[392819007,1761991840255,-163.080226,0.0005,15]
[392819008,1761991840264,-163.080226,0.0005,15]
[392819009,1761991840275,-163.080226,0.0005,15]
[392819010,1761991840284,-160.0,0.0005,120]
[392819011,1761991840293,-165.54100406,0.0005,120]
[392819012,1761991840303,-412.0,0.00050246,120]
[392819013,1761991840312,-800.0,0.00050421,30]
[392819014,1761991840321,-800.0,0.00050561,30]
[392819015,1761991840331,-161.0,0.000507,120]
[392819016,1761991840341,-800.0,0.00050709,30]
[392819017,1761991840350,-1000.0,0.00050883,120]
[392819018,1761991840359,-1000.0,0.00050883,120]
[392819019,1761991840368,-740.03,0.00051173,30]
[392819020,1761991840377,-800.0,0.00051254,30]
[392819021,1761991840386,-800.0,0.00051644,30]
[392819022,1761991840395,-800.0,0.0005189,30]
[392819023,1761991840404,-800.0,0.00051964,30]
[392819024,1761991840413,-161.38208821,0.00052269,30]
[392819025,1761991840422,-2838.0,0.00052318,15]
[392819026,1761991840431,-1300.0,0.00052526,60]
[392819027,1761991840498,-787.030896,0.00052632,2]
[392819028,1761991840514,-800.0,0.0005269,30]
[392819029,1761991840523,-1300.0,0.00053074,60]
[392819030,1761991840533,-412.0,0.00053246,120]
[392819031,1761991840542,-1893.2,0.000535,14]
[392819032,1761991840551,-8792.79,0.000535,14]
[392819033,1761991840560,-154.99295519,0.00053574,30]
[392819034,1761991840569,-1300.0,0.00053622,60]
[392819035,1761991840580,-2200.21994856,0.00053636,30]
[392819036,1761991840590,-800.0,0.0005374,30]
[392819037,1761991840599,-800.0,0.00053775,30]
[392819038,1761991840609,-2200.21994856,0.00053927,30]
[392819039,1761991840619,-2200.21994856,0.00053985,30]
[392819040,1761991840629,-800.0,0.00054064,30]
[392819041,1761991840638,-1300.0,0.0005417,60]
[392819042,1761991840648,-845.75,0.00054183,30]
[392819043,1761991840658,-1200.3864131,0.00054204,30]
[392819044,1761991840667,-800.0,0.00054398,30]
[392819045,1761991840676,-150.0,0.000544,120]
[392819046,1761991840686,-195.238378,0.000544,2]
[392819047,1761991840695,-151.0,0.00054443,30]
[392819048,1761991840705,-163.080226,0.00054444,15]
[392819049,1761991840714,-163.080226,0.00054444,15]
[392819050,1761991840724,-163.080226,0.00054444,15]
[392819051,1761991840733,-163.08022,0.00054444,15]
[392819052,1761991840743,-331.0,0.00054444,30]
[392819053,1761991840752,-331.0,0.00054444,30]
[392819054,1761991840761,-331.0,0.00054444,30]
[392819055,1761991840770,-331.0,0.00054444,30]
[392819056,1761991840779,-264.96908396,0.00054444,30]
[392819057,1761991840788,-1000.0,0.000545,2]
[392819058,1761991840797,-1200.3864131,0.00054548,30]
[392819059,1761991840806,-2200.21994856,0.00054725,30]
[392819060,1761991840815,-200.0,0.00054794,120]
[392819061,1761991840824,-500.0,0.00054794,120]
[392819062,1761991840833,-2200.21994858,0.00054799,30]
[392819063,1761991840842,-1200.3864133,0.00054931,30]
[392819064,1761991840851,-1133.63986333,0.00055,60]
[392819065,1761991840860,-500.0,0.00055068,120]
[392819066,1761991840869,-1300.0,0.00055266,120]
[392819067,1761991840878,-500.0,0.00055342,120]
[392819068,1761991840887,-500.0,0.00055616,120]
[392819069,1761991840895,-500.0,0.0005589,120]
[392819070,1761991840904,-1000.0,0.00055971,120]
[392819071,1761991840913,-1000.0,0.00055971,120]
[392819072,1761991840922,-579.0,0.00055971,120]
[392819073,1761991840932,-161.0,0.00056,120]
[392819074,1761991840940,-1130.0,0.00056,60]
[392819075,1761991840949,-530.55237597,0.00056164,120]
[392819076,1761991840958,-412.0,0.00056246,120]
[392819077,1761991840967,-1300.0,0.00056362,120]
[392819078,1761991840976,-621.2,0.00057,30]
[392819079,1761991840986,-1130.0,0.00057,60]
[392819080,1761991840995,-951.47,0.00057193,30]
[392819081,1761991841004,-1300.0,0.00057458,120]
[392819082,1761991841013,-460.20060327,0.00057999,60]
[392819083,1761991841022,-1130.0,0.00058,60]
[392819084,1761991841031,-200.0,0.00058291,120]
[392819085,1761991841040,-1300.0,0.00058554,120]
[392819086,1761991841049,-1893.2,0.000588,14]
[392819087,1761991841058,-787.030896,0.0005912,2]
[392819088,1761991841067,-412.0,0.00059246,120]
[392819089,1761991841076,-204.45344116,0.00059518,120]
[392819090,1761991841085,-203.67168051,0.00059518,120]
[392819091,1761991841095,-420.95,0.00059648,30]
[392819092,1761991841104,-1300.0,0.0005965,120]
[392819093,1761991841113,-151.0,0.0005965,120]
[392819094,1761991841122,-151.0,0.0005965,120]
[392819095,1761991841131,-151.0,0.0005965,120]
[392819096,1761991841140,-700.729724,0.0005965,120]
[392819097,1761991841149,-151.0,0.0005965,120]
[392819098,1761991841158,-700.729724,0.0005965,120]
[392819099,1761991841167,-700.729724,0.0005965,120]
[392819100,1761991841176,-700.729724,0.0005965,120]
[392819101,1761991841185,-151.0,0.0005965,120]
[392819102,1761991841200,-156.629413,0.0005965,120]
[392819103,1761991841209,-151.0,0.0005965,120]
[392819104,1761991841218,-151.0,0.0005965,120]
[392819105,1761991841227,-151.0,0.0005965,120]
[392819106,1761991841238,-170.806797,0.0005965,120]
[392819107,1761991841247,-174.652115,0.0005965,120]
[392819108,1761991841256,-170.497775,0.0005965,120]
[392819109,1761991841266,-300.0,0.00059699,63]
[392819110,1761991841275,-314.34866584,0.00059699,63]
[392819111,1761991841285,-250.0,0.00059999,29]
[392819112,1761991841294,-250.0,0.00059999,28]
[392819113,1761991841307,-1000.0,0.00059999,120]
[392819114,1761991841322,-1012.89258671,0.00060203,30]
[392819115,1761991841336,-242.42,0.00060274,30]
[392819116,1761991841349,-800.0,0.00060512,60]
[392819117,1761991841360,-1300.0,0.00060746,120]
[392819118,1761991841371,-168.0,0.00060774,120]
[392819119,1761991841386,-168.0,0.00060856,120]
[392819120,1761991841399,-161.0,0.000612,120]
[392819121,1761991841412,-920.0,0.00061568,120]
[392819122,1761991841424,-1300.0,0.00061842,120]
[392819123,1761991841436,-8792.79,0.00062,14]
[392819124,1761991841449,-503.78886007,0.00062,120]
[392819125,1761991841461,-412.0,0.00062246,120]
[392819126,1761991841474,-412.95979493,0.00062422,120]
[392819127,1761991841486,-1300.0,0.00062938,120]
[392819128,1761991841498,-253.27997857,0.00062984,120]
[392819129,1761991841511,-1000.0,0.00062999,120]
[392819130,1761991841523,-151.0,0.00063003,120]
[392819131,1761991841537,-151.0,0.00063003,120]
[392819132,1761991841549,-151.0,0.00063003,120]
[392819133,1761991841562,-180.11280063,0.00063003,120]
[392819134,1761991841583,-151.0,0.00063003,120]
[392819135,1761991841594,-151.0,0.00063003,120]
[392819136,1761991841606,-250.0,0.00063003,120]
[392819137,1761991841619,-297.76425221,0.00063003,120]
[392819138,1761991841631,-188.68992481,0.00063003,120]
[392819139,1761991841643,-316.65743201,0.00063003,120]
[392819140,1761991841656,-1197.16162877,0.00063003,120]
[392819141,1761991841669,-151.0,0.00063003,120]
[392819142,1761991841681,-151.0,0.00063003,120]
[392819143,1761991841694,-298.77211241,0.00063003,120]
[392819144,1761991841707,-156.587,0.00063003,120]
[392819145,1761991841719,-151.0,0.00063003,120]
[392819146,1761991841730,-151.0,0.00063003,120]
[392819147,1761991841739,-162.380719,0.00063003,120]
[392819148,1761991841750,-151.0,0.00063003,120]
[392819149,1761991841761,-220.32249139,0.00063003,120]
[392819150,1761991841778,-168.3888056,0.00063003,120]
[392819151,1761991841791,-269.82171069,0.00063003,120]
[392819152,1761991841802,-174.61919141,0.00063003,120]
[392819153,1761991841811,-101.36857292,0.00063003,120]
[392819154,1761991842109,-975.67453733,0.00025517,2]
[392819155,1761991842119,-19649.03078436,0.00025517,2]
[392819156,1761991842130,-19409.66690256,0.00025517,2]
[392819157,1761991842141,-2195.56659874,0.00025517,2]
[392819158,1761991842420,-3e-08,0.00025517,2]
[392819167,1761991843365,-215023.34048303,0.00025517,2]
[392819174,1761991846397,-4269.8360399,0.00025517,2]
[392819179,1761991848170,169.0,0.00025675,120]
[392819180,1761991848606,169.0,0.00025665,120]
[392819181,1761991848762,-305.45586011,0.00025517,2]
[392819182,1761991849043,169.0,0.00025655,120]
[392819183,1761991882987,412.55201611,0.00038101,120]
[392819186,1761991936586,263.0502726,0.00025407,2]
[392819187,1761991939434,-595.38233681,0.00025407,2]
[392819188,1761991941935,-631.65657374,0.00025407,2]
[392819189,1761991950922,516.5,0.00025403,2]
[392819190,1761991952265,205.91144101,0.00025131,2]
[392819191,1761991974576,255.19817795,0.00025306,2]
[392819192,1761991986259,160.0,0.00038101,20]
[392819224,1761992047064,160.0,0.00038091,20]
[392819225,1761992058018,-94.90553089,0.00025407,2]
[392819226,1761992058038,-857.06210125,0.00025473,2]
[392819227,1761992060111,-96.45038262,0.00025473,2]
[392819228,1761992062262,150.0,0.00024651,2]
[392819229,1761992067346,271.19917294,0.00032777,120]
[392819230,1761992103163,158.234842,0.00030137,120]
[392819231,1761992103193,426.69,0.00030137,120]
[392819232,1761992103237,189.30156421,0.00030137,120]
[392819233,1761992103266,206.6,0.00030137,120]
[392819234,1761992103299,314.66,0.00030137,120]
[392819235,1761992106658,194.0,0.00038091,20]
[392819236,1761992114362,860.73,0.00024444,30]
[392819237,1761992124134,-351.00032826,0.00025406,2]
[392819238,1761992126298,-494.60671324,0.00025406,2]
[392819239,1761992126769,-290.88548872,0.00025406,2]
[392819240,1761992132346,-472.13667065,0.00025406,2]
[392819241,1761992133652,274.6353357,0.00030137,120]
[392819242,1761992135354,511.0,0.00030091,120]
[392819243,1761992136676,511.0,0.00031595,120]
[392819244,1761992137351,-176.33384356,0.00025406,2]
[392819271,1761992178098,-549.74385111,0.00025406,2]
[392819272,1761992178121,-590.11274552,0.00025415,2]
[392819273,1761992181025,-219.40936407,0.00025415,2]
[392819274,1761992181487,-219.40936407,0.00025415,2]
[392819275,1761992181816,-2309.73392144,0.00025415,2]
[392819276,1761992207081,380.45720083,0.00032876,120]
[392819279,1761992298829,-307.60246633,0.00025255,2]
[392819280,1761992300616,-808.72410814,0.00025255,2]
[392819281,1761992300638,-34.15390435,0.00025355,2]
[392819282,1761992302785,-228.98930551,0.00025355,2]
[392819292,1761992373059,-245.5630041,0.000254,2]
[392819296,1761992380048,-155.3,0.000256,14]
[392819298,1761992388077,-54.4369959,0.000254,2]
[392819299,1761992388099,-245.5630041,0.000254,2]
[392819303,1761992395558,326.0,0.0003808,20]
[392819304,1761992398897,-600.0,0.00026026,20]
[392819305,1761992399273,648.20330347,0.00030136,120]
[392819307,1761992401672,300.0,0.00025377,2]
[392819309,1761992409745,-265.52160161,0.00027288,24]
[392819310,1761992432748,307.0,0.0002921,120]
[392819325,1761992434262,307.0,0.00030671,120]
[392819352,1761992435542,307.0,0.00032205,120]
[392819353,1761992435986,600.0,0.00026011,20]
[392819356,1761992450627,-720.0,0.00028612,30]
[392819361,1761992452519,268.17582236,0.00026849,90]
[392819362,1761992470475,720.0,0.00028612,30]
[392819363,1761992483640,-600.0,0.00026011,20]
[392819364,1761992483665,-159.0,0.00028384,29]
[392819365,1761992490884,-176.89,0.00025507,10]
[392819366,1761992490919,-879.28,0.000256,7]
[392819367,1761992490942,-403.98447456,0.00027,7]
[392819368,1761992490965,-403.98447456,0.00027,7]
[392819369,1761992490988,-534.01,0.00027671,7]
[392819370,1761992491009,-534.01,0.00027945,8]
[392819371,1761992491031,-403.98447456,0.00028,10]
[392819372,1761992491053,-403.98447456,0.00028,10]
[392819373,1761992491076,-534.01,0.00028219,9]
[392819374,1761992491099,-534.01,0.00028493,10]
[392819375,1761992491122,-534.01,0.00028767,11]
[392819376,1761992496132,1707.04098087,0.00029,7]
[392819377,1761992498397,155.3,0.000256,14]
[392819378,1761992501593,-884.49,0.00025507,10]
[392819379,1761992501626,-403.98447456,0.00027,3]
[392819380,1761992501649,-403.98447456,0.00027,3]
[392819381,1761992502548,600.0,0.00026011,20]
[392819382,1761992503022,720.0,0.00028612,30]
[392819383,1761992504511,-54.4369959,0.000254,2]
[392819384,1761992504533,-635.67498924,0.00025473,2]
[392819385,1761992504557,-300.0,0.00025501,2]
[392819386,1761992504582,-151.0,0.00025502,2]
[392819387,1761992504606,-151.0,0.00025502,2]
[392819388,1761992504631,-151.0,0.00025502,2]
[392819389,1761992504655,-151.0,0.00025502,2]
[392819390,1761992504680,-151.0,0.00025502,2]
[392819391,1761992504708,-151.0,0.00025502,2]
[392819392,1761992504734,-151.0,0.00025502,2]
[392819393,1761992504758,-151.0,0.00025502,2]
[392819394,1761992504783,-151.0,0.00025502,2]
[392819395,1761992504807,-151.0,0.00025502,2]
[392819396,1761992504832,-151.0,0.00025502,2]
[392819397,1761992504856,-151.0,0.00025502,2]
[392819398,1761992504880,-151.0,0.00025502,2]
[392819399,1761992504904,-151.0,0.00025502,2]
[392819400,1761992504928,-151.0,0.00025502,2]
[392819401,1761992504952,-151.0,0.00025502,2]
[392819402,1761992504976,-151.0,0.00025502,2]
[392819403,1761992505003,-151.0,0.00025502,2]
[392819404,1761992505030,-151.0,0.00025502,2]
[392819405,1761992505060,-151.0,0.00025502,2]
[392819406,1761992505084,-1200.0,0.00025506,2]
[392819407,1761992505106,-500.0,0.00025512,2]
[392819408,1761992505129,-403.71800197,0.00025512,2]
[392819409,1761992505152,-500.0,0.00025512,2]
[392819410,1761992505176,-500.0,0.00025512,2]
[392819411,1761992505199,-500.0,0.00025512,2]
[392819412,1761992505224,-500.0,0.00025512,2]
[392819413,1761992505248,-233.88497725,0.00025512,2]
[392819414,1761992505272,-500.0,0.00025512,2]
[392819415,1761992505294,-500.0,0.00025512,2]
[392819416,1761992505317,-217.95475558,0.00025512,2]
[392819417,1761992505340,-500.0,0.00025512,2]
[392819418,1761992505363,-500.0,0.00025512,2]
[392819419,1761992505387,-500.0,0.00025512,2]
[392819420,1761992505411,-500.0,0.00025512,2]
[392819421,1761992505436,-500.0,0.00025512,2]
[392819422,1761992505461,-500.0,0.00025512,2]
[392819423,1761992505486,-500.0,0.00025512,2]
[392819424,1761992505603,-500.0,0.00025512,2]
[392819425,1761992505628,-500.0,0.00025512,2]
[392819426,1761992505651,-500.0,0.00025512,2]
[392819427,1761992505675,-500.0,0.00025512,2]
[392819428,1761992505698,-500.0,0.00025512,2]
[392819429,1761992505722,-500.0,0.00025512,2]
[392819430,1761992505744,-500.0,0.00025512,2]
[392819431,1761992505768,-129.37502786,0.00025512,2]
[392819432,1761992513607,300.0,0.00025377,2]
[392819436,1761992525991,1000.0,0.0003808,120]
[392819438,1761992526060,151.0,0.0003808,120]
[392819439,1761992526652,1000.0,0.0003808,120]
[392819440,1761992526691,156.587,0.0003808,120]
[392819441,1761992527309,162.380719,0.0003808,120]
[392819442,1761992527340,1000.0,0.0003808,120]
[392819444,1761992527929,168.3888056,0.0003808,120]
[392819445,1761992527959,1000.0,0.0003808,120]
[392819446,1761992528536,174.61919141,0.0003808,120]
[392819447,1761992528566,1000.0,0.0003808,120]
[392819448,1761992529169,1000.0,0.0003808,120]
[392819449,1761992529197,181.08010149,0.0003808,120]
[392819450,1761992529769,187.78006525,0.0003808,120]
[392819451,1761992529799,1000.0,0.0003808,120]
[392819452,1761992530452,1000.0,0.0003808,120]
[392819453,1761992530976,194.72792766,0.0003808,120]
[392819454,1761992531635,201.93286099,0.0003808,120]
[392819455,1761992532245,209.40437684,0.0003808,120]
[392819456,1761992532890,217.15233878,0.0003808,120]
[392819457,1761992533496,225.18697532,0.0003808,120]
[392819458,1761992534101,233.51889341,0.0003808,120]
[392819461,1761992543559,300.0,0.00025377,2]
[392819462,1761992547380,307.0,0.00029952,120]
[392819463,1761992548650,307.0,0.00031449,120]
[392819464,1761992560615,228.90813331,0.00025377,2]
[392819465,1761992569777,347.0,0.00025507,120]
[392819466,1761992570215,347.0,0.00025497,120]
[392819467,1761992570649,347.0,0.00025487,120]
[392819470,1761992614838,257.88034566,0.00025356,2]
[392819471,1761992618040,-600.00000003,0.0002541,2]
[392819472,1761992620325,-531.00000003,0.0002541,2]
[392819473,1761992622423,-508.90833633,0.0002541,2]
[392819474,1761992622887,-508.90833633,0.0002541,2]
[392819475,1761992626570,1639.90833639,0.00025377,2]
[392819477,1761992634217,-391.08166367,0.0002541,2]
[392819478,1761992636774,-358.29347922,0.0002541,2]
[392819480,1761992649363,899.99,0.00025377,2]
[392819481,1761992663691,197.2718,0.00032876,120]
[392819490,1761992706235,151.40202284,0.0003808,120]
[392819491,1761992706438,387.80403169,0.0003808,120]
[392819492,1761992709833,151.0,0.0003808,20]
[392819493,1761992710470,151.0,0.0003808,20]
[392819494,1761992711204,151.0,0.0003808,20]
[392819495,1761992711938,151.0,0.0003808,20]
[392819496,1761992712599,151.0,0.0003808,20]
[392819497,1761992713304,151.0,0.0003808,20]
[392819498,1761992714029,151.0,0.0003808,20]
[392819499,1761992714652,151.0,0.0003808,20]
[392819500,1761992715304,151.0,0.0003808,20]
[392819501,1761992715920,151.0,0.0003808,20]
[392819502,1761992716600,151.0,0.0003808,20]
[392819503,1761992717717,151.0,0.0003808,20]
[392819504,1761992718355,151.0,0.0003808,20]
[392819505,1761992719002,151.0,0.0003808,20]
[392819506,1761992719635,151.0,0.0003808,20]
[392819507,1761992720240,151.0,0.0003808,20]
[392819508,1761992720849,151.0,0.0003808,20]
[392819509,1761992721480,151.0,0.0003808,20]
[392819510,1761992722632,151.0,0.0003808,20]
[392819511,1761992723834,151.0,0.0003808,20]
[392819512,1761992729497,231.36082168,0.0003808,120]
[392819513,1761992735526,171.0,0.00030979,120]
[392819514,1761992736974,171.0,0.00032528,120]
[392819515,1761992750665,1384.868904,0.00024506,2]
[392819527,1761992768504,164.127084,0.00024701,2]
[392819528,1761992768748,164.127084,0.00024701,10]
[392819529,1761992768966,164.127084,0.00024701,18]
[392819530,1761992769170,164.127084,0.00024701,27]
[392819531,1761992769588,164.127084,0.00024701,35]
[392819532,1761992769795,164.127084,0.00024701,44]
[392819533,1761992770198,164.127084,0.00024701,52]
[392819534,1761992770396,164.127084,0.00024701,60]
[392819535,1761992770608,164.127084,0.00024701,69]
[392819536,1761992770809,164.127084,0.00024701,77]
[392819537,1761992771031,164.127084,0.00024701,86]
[392819538,1761992771246,164.127084,0.00024701,94]
[392819539,1761992771678,164.127084,0.00024701,103]
[392819540,1761992771897,164.127084,0.00024701,111]
[392819541,1761992772233,164.127084,0.00024701,119]
[392819542,1761992777973,10000.0,0.00032877,120]
[392819543,1761992790367,601.11057587,4.9e-05,120]
[392819544,1761992793123,-191.41270413,0.00025473,2]
[392819545,1761992797204,10000.0,0.00032877,120]
[392819547,1761992815080,2226.54802064,0.00025377,2]
[392819548,1761992815101,7773.45197936,0.00025377,2]
[392819549,1761992823053,-372.08612189,0.00025405,2]
[392819551,1761992825286,-200.0,0.00025405,2]
[392819552,1761992827557,-395.69972237,0.00025405,2]
[392819554,1761992829109,-200.0,0.00025405,2]
[392819555,1761992829581,-207.5258462,0.00025405,2]
[392819556,1761992831498,-395.69972237,0.00025405,2]
[392819558,1761992834119,-173.38224351,0.00025405,2]
[392819559,1761992834295,2226.55802064,0.00025377,2]
[392819560,1761992834318,7773.44197936,0.00025377,2]
[392819562,1761992850996,2226.56802064,0.00025377,2]
[392819563,1761992851017,7773.43197936,0.00025377,2]
[392819565,1761992857150,-614.66458743,0.00025405,2]
[392819566,1761992857173,-232.37062203,0.00025473,2]
[392819567,1761992857196,-300.0,0.00025501,2]
[392819568,1761992857219,-25470.07181796,0.00025502,2]
[392819569,1761992857245,-151.0,0.00025502,2]
[392819570,1761992857271,-151.0,0.00025502,2]
[392819571,1761992857296,-151.0,0.00025502,2]
[392819572,1761992857321,-151.0,0.00025502,2]
[392819573,1761992857347,-151.0,0.00025502,2]
[392819574,1761992857373,-151.0,0.00025502,2]
[392819575,1761992857410,-151.0,0.00025502,2]
[392819576,1761992857436,-151.0,0.00025502,2]
[392819577,1761992857462,-151.0,0.00025502,2]
[392819578,1761992857488,-151.0,0.00025502,2]
[392819579,1761992857642,-151.0,0.00025502,2]
[392819580,1761992857671,-151.0,0.00025502,2]
[392819581,1761992857698,-151.0,0.00025502,2]
[392819582,1761992857725,-151.0,0.00025502,2]
[392819583,1761992857751,-151.0,0.00025502,2]
[392819584,1761992857777,-151.0,0.00025502,2]
[392819585,1761992857802,-151.0,0.00025502,2]
[392819586,1761992857829,-151.0,0.00025502,2]
[392819587,1761992857855,-151.0,0.00025502,2]
[392819588,1761992857880,-151.0,0.00025502,2]
[392819589,1761992857905,-500.0,0.00025505,2]
[392819590,1761992857928,-500.0,0.00025505,2]
[392819591,1761992857953,-500.0,0.00025505,2]
[392819592,1761992857977,-500.0,0.00025505,2]
[392819593,1761992858004,-500.0,0.00025505,2]
[392819594,1761992858036,-410.38779156,0.00025505,2]